Workbook

Sheet Sheet1
A1: SN | B1: Air Noise(dB)
B2: PVT full test | E2: air noise only(5x upmixer) | H2: VI | L2: PVT | M2: Airnoise Only | N2: Labview
A3: KLCPU22412007L | B3: -70.2 | C3: -70.4 | D3: -70.4 | E3: -70.269 | F3: -70.246 | G3: -70.357 | H3: -73.487 | I3: -73.556 | J3: -73.62 | L3: =AVERAGE(B3:D3) -> -70.33333333 | M3: =AVERAGE(E3:G3) -> -70.29066667 | N3: =AVERAGE(H3:J3) -> -73.55433333 | O3: =N3-L3 -> -3.221 | P3: =N3-M3 -> -3.263666667
A4: KLCPU1241200CF | B4: -67.881 | C4: -67.634 | D4: -67.6555 | E4: -67.7585 | F4: -67.6032 | G4: -67.9527 | H4: -73.4534 | I4: -73.4519 | J4: -73.5179 | L4: =AVERAGE(B4:D4) -> -67.7235 | M4: =AVERAGE(E4:G4) -> -67.77146667 | N4: =AVERAGE(H4:J4) -> -73.4744 | O4: =N4-L4 -> -5.7509 | P4: =N4-M4 -> -5.702933333
A5: KLCPU22412005U | B5: -70.4853 | C5: -70.3489 | D5: -70.4001 | E5: -70.2958 | F5: -70.1898 | G5: -70.338 | H5: -72.4706 | I5: -72.8361 | J5: -72.7382 | L5: -70.41143333 | M5: -70.27453333 | N5: -72.68163333 | O5: -2.2702 | P5: -2.4071
A6: KLCPU1241200C1 | B6: -62.0126 | C6: -61.9 | D6: -61.9695 | E6: -62.1089 | F6: -62.2788 | G6: -62.2841 | H6: -59.7691 | I6: -59.7709 | J6: -59.7177 | K6: buzz | L6: -61.9607 | M6: -62.22393333 | N6: -59.75256667 | O6: 2.208133333 | P6: 2.471366667
A7: KLCPU32412003J | B7: -67.46 | C7: -67.4306 | D7: -67.4791 | E7: -67.3767 | F7: -67.4855 | G7: -68.0218 | H7: -70.3405 | I7: -70.3243 | J7: -70.3411 | L7: -67.45656667 | M7: -67.628 | N7: -70.3353 | O7: -2.878733333 | P7: -2.7073
A8: KLCPU1241200C8 | B8: -68.0338 | C8: -68.0596 | D8: -68.0321 | E8: -67.9281 | F8: -68.2445 | G8: -68.2567 | H8: -71.5804 | I8: -71.6384 | J8: -71.6428 | L8: -68.04183333 | M8: -68.1431 | N8: -71.62053333 | O8: -3.5787 | P8: -3.477433333
A9: KLCPU32412000Y | B9: -67.0137 | C9: -66.9715 | D9: -66.9927 | E9: -66.9031 | F9: -67.05 | G9: -67.061 | H9: -69.5528 | I9: -69.5603 | J9: -69.5356 | L9: -66.99263333 | M9: -67.0047 | N9: -69.54956667 | O9: -2.556933333 | P9: -2.544866667
A10: KLCPU32412004K | B10: -65.836 | C10: -65.7909 | D10: -65.9018 | E10: -65.7473 | F10: -65.7222 | G10: -65.8544 | H10: -68.1283 | I10: -68.1692 | J10: -68.2042 | L10: -65.8429 | M10: -65.77463333 | N10: -68.16723333 | O10: -2.324333333 | P10: -2.3926
A11: KLCPU1241200E5 | B11: -68.6087 | C11: -68.438 | D11: -68.4685 | E11: -68.3685 | F11: -68.4213 | G11: -68.4399 | H11: -70.9784 | I11: -70.9127 | J11: -70.9236 | L11: -68.50506667 | M11: -68.4099 | N11: -70.93823333 | O11: -2.433166667 | P11: -2.528333333
A12: KLCPU12412004W | B12: -66.4008 | C12: -66.2365 | D12: -66.324 | E12: -66.2297 | F12: -66.376 | G12: -66.3262 | H12: -69.9644 | I12: -70.0199 | J12: -69.947 | L12: -66.32043333 | M12: -66.31063333 | N12: -69.9771 | O12: -3.656666667 | P12: -3.666466667
